Cogmind - Beta 9.3 @@@ ROGUE MODE // 2020.01.04 @ 16:30:31 Player: Khauvinkh Result: Destroyed by G-47 Trooper with Particle Gun Performance ------------- Evolutions (2) 1000 Regions Visited (3) 600 Robots Destroyed (87) 435 Value Destroyed (2336) 2336 Prototype IDs (7) 140 Alien Tech Used (0) 0 Bonus (84) 84 TOTAL SCORE: 4595 Bonus ------- High Alert Combat Kills 84 Cogmind --------- Core Integrity 0/550 Matter 450/500 Energy 32/100 System Corruption 0% Temperature Cool (9) Movement Rolling (90) Ox1 Location -8/Materials Parts ------- > --- POWER (2) -------- (None) > --- PROPULSION (3) --- Wheel Wheel > --- UTILITY (4) ------ Large Storage Unit High-capacity Matter Pod Improved Targeting Computer > --- WEAPON (2) ------- High-powered Shotgun Advanced EMP Blaster > --- INVENTORY (10) --- Light Ion Engine Carbon-fiber Leg Improved Heat Sink Light Armor Plating System Shield Particle Gun Advanced Beam Rifle High-powered Shotgun Peak State ------------ > --- POWER ------------ Improved Ion Engine Light Nuclear Core > --- PROPULSION ------- Light Treads Light Treads Light Treads > --- UTILITY ---------- Large Storage Unit Improved Targeting Computer Particle Charger Transmission Jammer > --- WEAPON ----------- Improved EM Shotgun Advanced Beam Rifle > --- INVENTORY -------- Light Treads Improved Heat Sink High-capacity Matter Pod Light Armor Plating Heavy EM Shotgun High-powered Shotgun High-powered Shotgun High-powered Shotgun Advanced EMP Blaster [Rating: 26] Favorites ----------- Power Light Ion Engine Engine Light Ion Engine Power Core Light Nuclear Core Propulsion Light Treads Treads Light Treads Leg Aluminum Leg Wheel Wheel Flight Unit Flight Unit Utility Large Storage Unit Device Heat Sink Storage Large Storage Unit Processor Improved Targeting Computer Protection Improved Weapon Shielding Weapon Flak Cannon Energy Gun Improved EM Shotgun Energy Cannon Particle Cannon Ballistic Gun High-powered Shotgun Ballistic Cannon Flak Cannon Launcher Grenade Launcher Build | -11 -10 -9 -8 ------- Run | Scr Mat Mat Mat Slots Evolved 4 | . . 2 2 Power 1 | . . 1 . Propulsion 1 | . . . 1 Utility 2 | . . 1 1 Weapon . | . . . . Parts Attached 95 | 6 13 33 43 Power 18 | 1 2 9 6 Engine 17 | 1 2 9 5 Core 1 | . . . 1 Reactor . | . . . . Propulsion 38 | 2 5 12 19 Treads 12 | . . 2 10 Leg 9 | 2 4 . 3 Wheel 9 | . 1 6 2 Hover . | . . . . Flight 8 | . . 4 4 Utility 14 | 1 2 5 6 Device 3 | . 1 . 2 Storage 3 | 1 1 . 1 Processor 1 | . . 1 . Hackware . | . . . . Protection 7 | . . 4 3 Artifact . | . . . . Weapon 25 | 2 4 7 12 Energy Gun 6 | . . 1 5 Energy Cannon 5 | . 2 3 . Ballistic Gun 8 | 2 . . 6 Ballistic Cannon 3 | . . 3 . Launcher 3 | . 2 . 1 Special Weapon . | . . . . Impact Weapon . | . . . . Slashing Weapon . | . . . . Piercing Weapon . | . . . . Special Melee Weapon . | . . . . Unidentified Prototypes 3 | . . 1 2 Parts Lost 29 | . 2 2 25 Power 7 | . . 1 6 Propulsion 13 | . 1 1 11 Utility 6 | . . . 6 Weapon 3 | . 1 . 2 Highest Loss Streak 7 | . 2 1 7 Average Slot Usage (%) 93 | . 98 95 86 Engine 15 | . 14 21 10 Treads 9 | . . 9 18 Leg 9 | . 25 1 1 Wheel 2 | . 2 5 . Flight 1 | . . 1 1 Device 7 | . 12 4 5 Storage 12 | . 14 11 11 Processor 4 | . . 4 9 Protection 7 | . . 12 9 Energy Gun 2 | . . 1 5 Energy Cannon 6 | . 15 4 . Ballistic Gun 5 | . 10 . 7 Ballistic Cannon 7 | . . 15 4 Naked Turns . | . . . . Heaviest Build 50 | 10 27 44 50 Greatest Support 60 | 20 20 40 60 Greatest Overweight (x) 14 | . 2 14 14 Average Overweight (x) 1 | . . 1 . Largest Inventory Capacity 10 | 6 10 10 10 Average Capacity 9 | 5 9 10 10 Most Carried 10 | 4 10 10 10 Average Carried 8 | 1 7 8 8 Final Capacity 10 | 6 10 10 10 Final Carried 10 | 1 10 10 8 Class Distribution -------------------- 50% | Mutant 49% | Scavenger-Mutant Dominant Class ---------------- Mutant | -10/Materials Scavenger-Mutant | -9/Materials Scavenger-Mutant | -8/Materials Resources | -11 -10 -9 -8 ----------- Run | Scr Mat Mat Mat Matter Collected 2572 | 260 378 842 1092 Remotely . | . . . . Salvage Created 2555 | . 520 773 1262 Parts 165 | . 32 64 69 Haulers Intercepted 5 | . . 3 2 Recyclers Shooed 5 | . 1 2 2 Parts Field Recycled . | . . . . Retrieved Matter . | . . . . Parts Self-Destructed . | . . . . Prevented . | . . . . Kills | -11 -10 -9 -8 ------- Run | Scr Mat Mat Mat Combat Hostiles Destroyed 62 | . 12 19 31 Guns 29 | . 7 1 21 Cannons 30 | . 3 18 9 AOE 3 | . 2 . 1 Classes Destroyed 10 | . 4 4 2 Worker 7 | . . 4 3 Builder 4 | . . 2 2 Hauler 5 | . . 3 2 Recycler 2 | . 2 . . Watcher 7 | . 2 3 2 Swarmer 18 | . 6 4 8 Grunt 32 | . 6 11 15 Duelist 1 | . . . 1 Sentry 9 | . . 4 5 Hunter 2 | . . . 2 Best Kill Streak 6 | . 5 6 6 Combat Bots Only 6 | . 5 6 6 Max Kills in Single Turn 2 | . 1 2 2 Gunslinging . | . . . . Exploded 1 | . 1 . 1 Melee . | . . . . Uniques/NPCs Destroyed . | . . . . Combat | -11 -10 -9 -8 -------- Run | Scr Mat Mat Mat Damage Taken 5111 | . 689 873 3549 Core 766 | . 86 121 559 Absorbed by Shields . | . . . . Core Remaining (%) 78 | 100 65 69 . Volleys Fired 234 | . 47 61 126 Largest 2 | . 2 2 2 Hottest 136 | . 128 136 111 Shots Fired 433 | . 88 120 225 Gun 236 | . 42 6 188 Cannon 194 | . 44 114 36 Launcher 3 | . 2 . 1 Special . | . . . . Kinetic 262 | . 42 78 142 Thermal 123 | . 44 36 43 Explosive 2 | . 2 . . Electromagnetic 46 | . . 6 40 Robot Hit Streak 12 | . 12 9 12 Robot Miss Streak 15 | . 6 15 8 Penetration Max . | . . . . Secondary Targets 4 | . 2 . 2 Max Gunslinging Chain 1 | . 1 . 1 Shots Hit Robots 319 | . 46 90 183 Core Hits 192 | . 25 67 100 Critical Hits 5 | . 1 1 3 Critical Kills 2 | . . 1 1 Critical Parts Destroyed 3 | . 1 . 2 Melee Attacks . | . . . . Impact . | . . . . Slashing . | . . . . Piercing . | . . . . Sneak Attacks . | . . . . Combat Hostiles . | . . . . Follow-up Attacks . | . . . . Damage Inflicted 5758 | . 828 1500 3430 Guns 3144 | . 328 104 2712 Cannons 2231 | . 370 1365 496 Explosions 383 | . 130 31 222 Melee . | . . . . Ramming . | . . . . Kinetic 3278 | . 328 996 1954 Thermal 1466 | . 370 400 696 Explosive 141 | . 130 . 11 Electromagnetic 873 | . . 104 769 Impact . | . . . . Slashing . | . . . . Piercing . | . . . . Highest Corruption 1 | . . 1 . Average Corruption 1 | . . 1 . Corruption Purged . | . . . . Effects 2 | . . 2 . Message Errors 1 | . . 1 . Data Loss (minor) 1 | . . 1 . Overload Shots . | . . . . Overflow Damage 33 | . 16 2 15 Projectiles 11 | . 9 2 . Explosions 22 | . 7 . 15 Melee . | . . . . Knockbacks 17 | . . 13 4 Impact . | . . . . Kinetic 17 | . . 13 4 Secondary . | . . . . Self-Inflicted Damage 156 | . . 26 130 Shots 3 | . . 1 2 Rammed . | . . . . Targets Rammed . | . . . . Kicked . | . . . . Crushed . | . . . . Highest Temperature 539 | . 180 539 438 Average Temperature 94 | . 56 90 107 Received Heat Transfer 1338 | . 111 237 990 Effects 13 | . . 7 6 Shutdowns 8 | . . 3 5 Matter Decay 3 | . . 3 . Damage (minor) 1 | . . . 1 Damage (core) 1 | . . 1 . Siege Activations . | . . . . Robots Corrupted . | . . . . Combat Hostiles . | . . . . Parts Fried 5 | . . . 5 Impact Corruptions . | . . . . Robots Melted . | . . . . Combat Hostiles . | . . . . Parts Melted 4 | . 3 . 1 Heat Transferred 2790 | . 740 716 1334 Parts Sabotaged . | . . . . Parts Stolen . | . . . . Parts Stripped . | . . . . Power Chain Reactions 4 | . . 1 3 Missiles Intercepted . | . . . . Alert | -11 -10 -9 -8 ------- Run | Scr Mat Mat Mat Peak Influence 649 | . 203 306 649 Average Influence 186 | . 85 196 280 Maximum Alert Level 2 | . 1 1 2 Low Security (%) 60 | 100 96 53 30 Level 1 32 | . 3 46 46 Level 2 7 | . . . 23 Level 3 . | . . . . Level 4 . | . . . . Level 5 . | . . . . High Security . | . . . . Max Security . | . . . . Squads Dispatched 16 | . 1 6 9 Investigation 6 | . . 4 2 Extermination . | . . . . Reinforcement 4 | . 1 2 1 Assault . | . . . . Garrison 6 | . . . 6 Intercept . | . . . . Construction Impeded 1 | . . . 1 Haulers Reinforced . | . . . . Stealth | -11 -10 -9 -8 --------- Run | Scr Mat Mat Mat Distress Signals 7 | . 2 1 4 Communications Jammed 25 | . . . 25 Distress Signals 23 | . . . 23 Times Spotted 100 | . 20 30 50 Peak Tracking Total 8 | . 5 4 8 Tactical Retreats 6 | . . 1 5 Traps | -11 -10 -9 -8 ------- Run | Scr Mat Mat Mat Traps Triggered 3 | . 3 . . Indirectly . | . . . . Trap Hack Attempts . | . . . . Triggered . | . . . . Disarmed 1 | . 1 . . Reprogrammed . | . . . . Reused . | . . . . Traps Extracted . | . . . . Installed . | . . . . Triggered . | . . . . Machines | -11 -10 -9 -8 ---------- Run | Scr Mat Mat Mat Machines Disabled 9 | . 3 . 6 Max in Single Turn 2 | . 1 . 2 Machines Sabotaged . | . . . . Garrisons Compromised . | . . . . Overloaded Fab Kills . | . . . . Fab Network Shutdowns . | . . . . Hacking | -11 -10 -9 -8 --------- Run | Scr Mat Mat Mat Machines Accessed 13 | . 5 5 3 Terminals 10 | . 5 2 3 Fabricators . | . . . . Repair Stations 1 | . . 1 . Recycling Units . | . . . . Scanalyzers 2 | . . 2 . Garrison Access . | . . . . Total Hacks 40 | . 11 20 9 Successful 34 | . 8 18 8 Failed 6 | . 3 2 1 Catastrophic . | . . . . Database Lockouts . | . . . . Manual . | . . . . Terminals 24 | . 11 4 9 Fabricators . | . . . . Repair Stations 3 | . . 3 . Recycling Units . | . . . . Scanalyzers 13 | . . 13 . Garrison Access . | . . . . Terminal Hacks 20 | . 8 4 8 Record 3 | . . . 3 Robot Analysis 1 | . 1 . . Prototype ID Bank 2 | . 1 1 . Emergency Access Points 1 | . . . 1 Locate Traps 1 | . 1 . . Disarm Traps 2 | . 2 . . Maintenance Status 1 | . . . 1 Patrol Status 2 | . 1 . 1 Recall Reinforcements 1 | . . . 1 Hauler Manifests 4 | . 1 2 1 Zone Layout 2 | . 1 1 . Fabricator Hacks . | . . . . Repair Station Hacks 2 | . . 2 . Scan Component 1 | . . 1 . Repair 1 | . . 1 . Recycling Unit Hacks . | . . . . Scanalyzer 12 | . . 12 . Insert Component 6 | . . 6 . Analyze 6 | . . 6 . Garrison Access Hacks . | . . . . Unauthorized Hacks . | . . . . Terminals . | . . . . Fabricators . | . . . . Repair Stations . | . . . . Recycling Units . | . . . . Scanalyzers . | . . . . Garrison Access . | . . . . Data Cores Recovered . | . . . . Used . | . . . . Hacking Detections 7 | . 2 3 2 Full Trace Events 5 | . . 3 2 Feedback Events 1 | . . 1 . Corruption 1 | . . 1 . Feedback Blocked . | . . . . Robot Schematics Acquired . | . . . . Robots Built . | . . . . Matter . | . . . . Time . | . . . . Total Robot Build Rating . | . . . . Part Schematics Acquired 6 | . . 6 . Parts Built . | . . . . Matter . | . . . . Time . | . . . . Total Part Build Rating . | . . . . Parts Repaired 1 | . . 1 . Time 38 | . . 38 . Parts Recycled . | . . . . Recycled Matter . | . . . . Retrieved Matter . | . . . . Retrieved Components . | . . . . Parts Scanalyzed 6 | . . 6 . Part Schematics Acquired 6 | . . 6 . Parts Damaged . | . . . . Bothacking | -11 -10 -9 -8 ------------ Run | Scr Mat Mat Mat Used RIF Installer . | . . . . Robots Hacked . | . . . . Non-combat . | . . . . Combat . | . . . . Robot Hacks Applied . | . . . . Relay Couplers Released . | . . . . Robots Rewired . | . . . . Allies Hacked . | . . . . Hacks Repelled . | . . . . Allies | -11 -10 -9 -8 -------- Run | Scr Mat Mat Mat Total Allies . | . . . . Largest Group . | . . . . Highest-Rated Group . | . . . . Highest-Rated Ally . | . . . . Total Orders . | . . . . Ally Attacks . | . . . . Total Damage . | . . . . Kills . | . . . . Allies Corrupted . | . . . . Allies Melted . | . . . . Intel | -11 -10 -9 -8 ------- Run | Scr Mat Mat Mat Robot Analysis Total 1 | . 1 . . Derelict Logs Recovered . | . . . . Drone Launches . | . . . . Drone Recoveries . | . . . . Exploration | -11 -10 -9 -8 ------------- Run | Scr Mat Mat Mat Turns Passed 4079 | 70 1239 1481 1289 Spaces Moved 1977 | 57 754 734 432 Core 44 | 14 . 22 8 Treads 693 | . . 349 344 Legs 729 | 43 600 42 44 Wheels 451 | . 154 295 2 Hover . | . . . . Flight 60 | . . 26 34 Fastest Speed 50 | 50 110 90 100 Average Speed 160 | 102 140 163 196 Slowest Speed 880 | 120 180 750 880 Overloaded Moves . | . . . . Propulsion Burnouts . | . . . . Robots Hopped . | . . . . Cave-ins Triggered . | . . . . Exploration Rate (%) 38 | 3 89 41 19 Regions Visited 3 Branch Regions . Pre-discovered Areas . | . . . . Known Exits Taken . | . . . . Unknown Exits Taken 3 | 1 1 1 . Scrap Searched . | . . . . Spaces Dug . | . . . . Terrain Destroyed 34 | . 11 . 23 Melee . | . . . . Projectile . | . . . . AOE 34 | . 11 . 23 Actions | -11 -10 -9 -8 --------- Run | Scr Mat Mat Mat Total 2471 | 68 852 902 649 Wait 5 | . . 4 1 Move 1974 | 56 753 733 432 Hop . | . . . . Pick Up 93 | 6 24 32 31 Fast Attach 16 | 1 2 9 4 Attach 47 | 5 3 12 27 Detach . | . . . . Swap 32 | . 8 12 12 Drop 70 | . 15 39 16 Fire 234 | . 47 61 126 Melee . | . . . . Ram . | . . . . Kick . | . . . . Crush . | . . . . Escape Stasis . | . . . . Rewire . | . . . . Trap . | . . . . Miscellaneous . | . . . . Route ------- -11/Scrapyard -10/Materials (discovered 3 exits: *Mat x2 / [*Min]) -9/Materials -8/Materials History --------- Turn | Location | Event 44 | -11/Scrapyard | Discovered new exit (range 13) 71 | -11/Scrapyard | Entered Materials 314 | -10/Materials | Build established: Mutant 450 | -10/Materials | Discovered new exit (range 15) 943 | -10/Materials | Discovered new exit (range 12) 1201 | -10/Materials | Discovered new exit (range 17) 1310 | -10/Materials | Entered another Materials area 1310 | -9/Materials | Evolved 2 slots: Power x1, Utility x1 1995 | -9/Materials | Build established: Scavenger-Mutant 2556 | -9/Materials | Discovered new exit (range 9) 2758 | -9/Materials | Repaired Imp. Weapon Shielding 2791 | -9/Materials | Entered another Materials area 2791 | -8/Materials | Evolved 2 slots: Propulsion x1, Utility x1 3028 | -8/Materials | Garrison activated, responded to threat 3227 | -8/Materials | Lost 3 parts (1p1n1u) 3419 | -8/Materials | Lost 4 parts (1p1n2u) 3480 | -8/Materials | Build established: Mutant 3634 | -8/Materials | Lost 3 parts (1p1n1u) 3845 | -8/Materials | Core integrity fell below 50% 3904 | -8/Materials | Lost 3 parts (1p2n) 4039 | -8/Materials | Core integrity fell below 20% 4069 | -8/Materials | Lost 7 parts (1p3n1u2w) 4080 | -8/Materials | Destroyed by G-47 Trooper with Particle Gun Last Messages --------------- K-01 Serf collects debris. Penetrated by Slug. K-01 Serf collects debris. Penetrated by Slug. H-55 Commando destroyed. Acquired 30 matter. K-01 Serf collects debris. Acquired 1 matter. Acquired Wheel. Acquired Carbon-fiber Leg. K-01 Serf collects debris. U-05 Engineer destroyed. Terminal disabled. Door malfunctions. K-01 Serf destroyed. Emergency Access malfunctions. Chain reaction triggered in Lgt. Ion Engine. Door malfunctions. U-05 Engineer repairs door. U-05 Engineer lays Concrete. Map ----- +----------------------------------------------------+ | ?????????????????????????????????????????????????? | | ?????????????????????????????????????????????????? | | ?????????????????????????????????????????????????? | | ?????????????????????????????????????????????????? | | ?????????????????????????????????????????????????? | | ?????????????????????????????????????????????????? | | ?????????????????????????????????????????????????? | | ?????????????????????????????????????????????????? | | ?????????????????????????????????????????????????? | | ?????????????????????????????????????????????????? | | ?????????????????????? ?????????????????????????? | | ?????????????????????? #????????????????????????? | | ?????????????????????? #???+????????????????????? | | ????????????!!???? ? #????????????????????????? | | ??????????#! ? """ #????????????????????????? | | ??????????#! """ #????????????????????????? | | ???????????! "" ####+###?????????????????? | | ???????????? = # #?????????????????? | | ?????????????! =% # #?????????????????? | | ??????????????# "" % # +??+??????????????? | | ?????????###### " + #?????????????????? | | ???????? " # #?????????????????? | | ????????? % # """#?????????????????? | | ?????????? #### ###???????????????? | | ?????????????# =[ #* #???????????????? | | ?????????????# " = #@!! #???????????????? | | ?????????????# =%!#!%! ##??????????????? | | ?????????????# =%%/%% / ??????????? | | ?????????????# [%/#!%!=g | # ?????????? | | ?????????????# #[!! !#???###?????????? | | ?????????????# # #???????????????? | | ?????????????# ######## u u#???????????????? | | ?????????????# #??????# + ??????????????? | | ?????????????# #??????###### #####?????????????? | | ?????????????# #???????????###?????????????????? | | ?????????????# ###########?????????????????????? | | ?????????????# ## #?????????????????????? | | ????????????## ## ! #?????????????????????? | | ##+####+##### # [ #?????????????????????? | | !% # """ #?????????????????????? | | +!""""" #?????????????????????? | | # """"" #?????????????????????? | | ##### ##### ! # """"" #?????????????????????? | | ??#####"#"#### ## """ #?????????????????????? | | ??# #?# ## #?????????????????????? | | ??# """ #?# ###########?????????????????????? | | # "G" #?# #???????????????????????????????? | | / "!" ### #???????????????????????????????? | | ??# *[[+ ]! #######?????????????????????????? | | ??# """ % [### #?????????????????????????? | +----------------------------------------------------+ Best States ------------- Heat Dissipation 38 Energy Generation 21 Energy Capacity 440 Matter Stores 500 Matter Capacity 500 Sight Range 16 Terrain Scan Density 10 Jamming Range 8 Armor Coverage 225 Resistance: EM 15 Weapon Shielding 66 Evasion (%) 50 Targeting Accuracy 6 Recoil Reduction 3 Particle Charging 15 Item Schematics ----------------- Particle Cannon | -9/Materials | Scanalyzed Particle Charger | -9/Materials | Scanalyzed Targeting Computer | -9/Materials | Scanalyzed Visual Processing Unit | -9/Materials | Scanalyzed Hpw. Shotgun | -9/Materials | Scanalyzed Imp. Heat Sink | -9/Materials | Scanalyzed Robot Schematics ------------------ None Fabricated ------------ Nothing Alien Tech Used ----------------- None Achievements -------------- Hey, That's Mine! More Dakka Please Total Silence Challenges ------------ None Game ------ Seed CannonChromaticPenetrator Manual? 0 Play Time 00:52:53 Cumulative 3.9 hours Start 2020.01.04 @ 15:33:15 End 2020.01.04 @ 16:30:31 Sessions 1 Manual Loads 0 Difficulty Rogue Special Mode None Game No. 6 Rogue 6 Adventurer 0 Explorer 0 Win Type - Total 0 Types 0/0/0/0/0/0/0 Lore% 2 Gallery% 8 Achievement% 7 Wizard Run 0 Options --------- ASCII 0 Keyboard 0 Movement Arrows Keybinds 0 Fullscreen 1 Font 18/SmallcapsGlow Map View 76x50 Tactical HUD 0 Map Filters NONE Filters NONE Steam 1 RUN: ba433b99-1cbe-4dfb-a795-82422d05fb17